[Event "8th Svetozar Gligoric Cup 2022"]
[Site "Paracin"]
[Date "2022.06.02"]
[Round "4.1"]
[White "Bogosavljevic, Boban"]
[Black "Markus, Robert"]
[Result "1/2-1/2"]
[ECO "A24"]
[WhiteElo "2527"]
[BlackElo "2613"]
[Annotator "TA"]
[PlyCount "79"]
[EventDate "2022.05.31"]
[EventType "team-tourn"]
[EventCountry "SRB"]
[SourceTitle "playchess.com"]
[Source "ChessBase"]
[SourceQuality "1"]
[TimeControl "40/5400+30:900+30"]

{[%evp 17,79,8,12,8,27,0,22,19,41,14,13,14,11,11,8,0,8,2,7,0,0,-14,-8,-8,-7,-7,0,-13,0,0,0,0,0,0,39,48,84,67,67,0,0,0,0,0,0,-7,-7,-7,-7,-7,-7,-6,0,0,0,0,0,0,0,0,0,0,0,0]} 1. Nf3 {[%emt 0:00:43]} Nf6 {[%emt 0:00:09]} 2. g3 {[%emt 0:00:06]} g6 {[%emt 0:00:18]} 3. Bg2 {[%emt 0:00:06]} Bg7 {[%emt 0:00:07]} 4. O-O {[%emt 0:00:06]} O-O {[%emt 0:00:07]} 5. c4 {[%emt 0:00:03]} d6 {[%emt 0:00:09]} 6. Nc3 {[%emt 0:00:06]} e5 {[%emt 0:00:12]} 7. d3 {[%emt 0:00:05]} a5 {[%emt 0:03:39]} 8. a3 {[%emt 0:00:28]} h6 {[%emt 0:00:52]} 9. Rb1 {[%emt 0:00:41]} Re8 {[%emt 0:03:14]} 10. e4 {[%emt 0:05:55] A24: English Opening vs King's Indian: Lines without ...Nc6.} c6 {[%emt 0:07:22]} 11. Re1 {[%emt 0:00:52]} Be6 {[%emt 0:01:57]} 12. h3 {[%emt 0:13:39]} Na6 {[%emt 0:09:30]} 13. b4 {[%emt 0:10:26]} axb4 {[%emt 0:05:29]} 14. axb4 {[%emt 0:00:16][%cal Ba3b4,Bb4b5][%mdl 32]} Nc7 {[%emt 0:06:05]} 15. b5 {[%emt 0:12:03]} Nd7 {[%emt 0:02:21]} 16. Be3 {[%emt 0:03:18] [#]} Qe7 $146 {[%emt 0:03:18]} ({Predecessor:} 16... Kh7 17. Qc2 Nc5 18. Red1 Qd7 19. d4 exd4 20. Bxd4 Bxd4 21. Rxd4 Qe7 22. Re1 Ra5 {1-0 (44) Agostini,V (2160)-Lazan,R ICCF email 2005}) 17. Qd2 {[%emt 0:06:44]} Qf8 {[%emt 0:03:40]} 18. g4 {[%emt 0:16:40]} Nc5 {[%emt 0:04:39]} 19. bxc6 {[%emt 0:03:28]} bxc6 {[%emt 0:00:19]} 20. Rb6 {[%emt 0:00:34]} Ra6 {[%emt 0:03:53]} 21. Reb1 {[%emt 0:01:07]} Rea8 {[%emt 0:04:33]} 22. Rxa6 {[%emt 0:03:49]} N7xa6 {[%emt 0:05:59]} 23. d4 {[%emt 0:08:36]} exd4 {[%emt 0:02:15]} 24. Nxd4 {[%emt 0:00:06]} Bxc4 {[%emt 0:03:14]} 25. Nxc6 {[%emt 0:01:52][%cal Oe4e5]} Nb3 {[%emt 0:02:26] [#]} 26. Qd1 {[%emt 0:06:47]} Nac5 {[%emt 0:05:03]} (26... Bxc3 27. Qc2) 27. e5 {[%emt 0:00:45]} dxe5 {[%emt 0:08:28] [#]} 28. Ne4 {[%emt 0:00:06]} ({Better is} 28. Ne7+ $1 $14 Qxe7 (28... Kh7 29. Bxa8) 29. Bxa8) 28... Nxe4 $11 {[%emt 0:04:55] The position is equal.} 29. Bxe4 {[%emt 0:00:03]} Nd4 {[%emt 0:00:10]} 30. Bxd4 {[%emt 0:01:50]} exd4 {[%emt 0:00:06]} 31. Qc2 {[%emt 0:01:51]} Re8 {[%emt 0:03:07] ...Be6 is the strong threat.} 32. Qxc4 {[%emt 0:01:22]} Rxe4 {[%emt 0:00:07]} 33. Qd5 {[%emt 0:00:38] Prevents Qd6.} Re8 {[%emt 0:00:59]} 34. Rb7 {[%emt 0:00:39]} g5 {[%emt 0:02:03]} 35. Kg2 {[%emt 0:00:17]} Bf6 {[%emt 0:00:16]} 36. Rd7 {[%emt 0:01:50]} Re6 {[%emt 0:02:02]} 37. Nxd4 {[%emt 0:00:30]} Bxd4 {[%emt 0:00:08]} 38. Qxd4 {[%emt 0:00:23]} Qa8+ {[%emt 0:00:46]} 39. Qd5 {[%emt 0:00:38]} Qxd5+ {[%emt 0:00:07]} 40. Rxd5 {[%emt 0:00:00] Weighted Error Value: White=0.06 (flawless) /Black=0.06 (flawless)} 1/2-1/2

[Event "8th Svetozar Gligoric Cup 2022"]
[Site "Paracin"]
[Date "2022.06.02"]
[Round "4.2"]
[White "Kovacevic, Aleksandar"]
[Black "Stankovic, Milos"]
[Result "1/2-1/2"]
[ECO "B76"]
[WhiteElo "2503"]
[BlackElo "2430"]
[Annotator "TA"]
[PlyCount "48"]
[EventDate "2022.05.31"]
[EventType "team-tourn"]
[EventCountry "SRB"]
[SourceTitle "playchess.com"]
[Source "ChessBase"]
[SourceQuality "1"]
[TimeControl "40/5400+30:900+30"]

{[%evp 25,48,43,35,40,75,30,33,8,16,20,11,7,12,0,0,0,7,0,0,-25,-30,-168,0,0,7]} 1. e4 {[%emt 0:00:17]} c5 {[%emt 0:01:11]} 2. Nf3 {[%emt 0:00:14]} d6 {[%emt 0:00:29]} 3. d4 {[%emt 0:01:42]} cxd4 {[%emt 0:00:32]} 4. Nxd4 {[%emt 0:00:04]} Nf6 {[%emt 0:00:30]} 5. Nc3 {[%emt 0:00:05]} g6 {[%emt 0:00:29]} 6. Be3 {[%emt 0:00:28]} Bg7 {[%emt 0:00:31]} 7. f3 {[%emt 0:00:11]} O-O {[%emt 0:00:30]} 8. Qd2 {[%emt 0:00:13]} Nc6 {[%emt 0:00:27]} 9. O-O-O {[%emt 0:01:06]} d5 {[%emt 0:02:35]} 10. exd5 {[%emt 0:00:23]} Nxd5 {[%emt 0:00:28]} 11. Nxc6 {[%emt 0:00:22]} bxc6 {[%emt 0:00:28]} 12. Bd4 {[%emt 0:00:10]} e5 {[%emt 0:00:31]} 13. Bc5 {[%emt 0:00:30]} Re8 {[%emt 0:00:31]} 14. Ne4 {[%emt 0:01:32] B76: Sicilian Dragon: Yugoslav Attack, 9 g4 and 9 0-0-0.} Qc7 {[%emt 0:00:30] is cutting edge theory.} 15. Bc4 {[%emt 0:01:21] White is more active.} (15. h4 $5 {[%cal Rh4h5]}) 15... Be6 {[%emt 0:01:32]} 16. h4 {[%emt 0:01:42] Black should prevent h5. White is slightly better.} Rad8 {[%emt 0:30:05]} 17. Qf2 {[%emt 0:06:02]} Nf4 {[%emt 0:02:48]} 18. Bxe6 {[%emt 0:17:23]} Nxe6 {[%emt 0:00:51]} 19. Rxd8 {[%emt 0:12:09]} Rxd8 {[%emt 0:01:36] [#]} 20. Be3 $146 {[%emt 0:06:50]} ({Predecessor:} 20. h5 Qa5 21. Ba3 f5 22. Nd6 Rxd6 23. Bxd6 Qxa2 24. h6 Bf6 25. Kd2 Qd5+ 26. Kc1 Qxd6 27. Qxa7 {½-½ (46) Balakrishnan,P (2226)-Zhu,H (2193) Kitchener 2015}) 20... f5 {[%emt 0:05:43]} 21. Ng5 {[%emt 0:05:11]} Nxg5 {[%emt 0:16:08]} 22. hxg5 {[%emt 0:00:30]} e4 {[%emt 0:01:19][%cal Og7b2] aiming for ...Bxb2+!} 23. fxe4 {[%emt 0:06:02] [#]} (23. Bd2 $11 {and White stays safe.}) 23... Qa5 $2 {[%emt 0:06:31]} (23... Bxb2+ $1 $19 {[%mdl 512]} 24. Kxb2 Qe5+ 25. Kb3 Rb8+ 26. Kc4 Qb5+ 27. Kd4 Qb4+ 28. Kd3 Rd8+ 29. Bd4 c5) 24. a3 $1 $11 {[%emt 0:04:26]} Qe5 {[%emt 0:06:13] Weighted Error Value: White=0.24 (precise) /Black=0.25 (precise)} 1/2-1/2

[Event "8th Svetozar Gligoric Cup 2022"]
[Site "Paracin"]
[Date "2022.06.02"]
[Round "4.3"]
[White "Zajic, Milan"]
[Black "Brenjo, Slavisa"]
[Result "1-0"]
[ECO "C77"]
[WhiteElo "2426"]
[BlackElo "2402"]
[Annotator "TA"]
[PlyCount "97"]
[EventDate "2022.05.31"]
[EventType "team-tourn"]
[EventCountry "SRB"]
[SourceTitle "playchess.com"]
[Source "ChessBase"]
[SourceQuality "1"]
[TimeControl "40/5400+30:900+30"]

{[%evp 16,97,12,0,17,0,7,0,0,0,20,22,22,14,52,41,48,37,46,30,58,42,42,44,47,51,35,51,99,76,116,109,141,138,152,140,138,136,135,130,137,139,141,143,334,335,351,337,321,314,320,203,197,195,196,204,199,192,212,186,210,179,189,179,189,179,280,278,310,310,286,301,496,435,833,840,589,551,804,793,760,768,515,506]} 1. e4 {[%emt 0:01:08]} e5 {[%emt 1:31:00]} 2. Nf3 {[%emt 0:00:32]} Nc6 {[%emt 0:00:00]} 3. Bb5 {[%emt 0:00:27][%cal Bf1b5,Bb5a4,Ba4b3,Bb3a2,Ba2d5][%mdl 32]} a6 {[%emt 0:00:00]} 4. Ba4 {[%emt 0:00:04]} Nf6 {[%emt 0:00:00]} 5. O-O {[%emt 0:00:16]} Be7 {[%emt 0:00:00]} 6. d3 {[%emt 0:00:21]} b5 {[%emt 0:00:00]} 7. Bb3 {[%emt 0:00:03]} O-O {[%emt 0:00:00]} 8. Nc3 {[%emt 0:00:18]} d6 {[%emt 0:00:00]} 9. a3 {[%emt 0:00:07]} Rb8 {[%emt 0:00:00] C77: Ruy Lopez: 3...a6 4 Ba4 Nf6, unusual lines.} 10. Be3 {[%emt 0:00:54]} Na5 {[%emt 0:00:00]} 11. Ba2 {[%emt 0:00:51]} c5 {[%emt 0:00:00] The position is equal.} 12. b4 {[%emt 0:18:05]} cxb4 {[%emt 0:00:00]} (12... Nc6 $5 {[%cal Rc5b4]}) 13. axb4 {[%emt 0:00:50]} Nc6 {[%emt 0:00:00]} 14. Rb1 {[%emt 0:23:15]} Bg4 {[%emt 0:00:00] [#]} 15. Nd5 $146 {[%emt 0:25:55]} ({Predecessor:} 15. h3 Bh5 16. Nd5 Nxd5 17. Bxd5 Rc8 18. c3 Bf6 19. g4 Bg6 20. Qb3 h6 21. Ra1 {1-0 (44) Kulaots,K (2574)-Melkumyan,H (2654) Minsk 2015}) 15... Nxd5 {[%emt 0:00:00]} 16. Bxd5 {[%emt 0:00:07]} Qc8 {[%emt 0:00:00]} 17. c3 {[%emt 0:02:42]} Bd8 {[%emt 0:00:00]} 18. h3 {[%emt 0:03:48]} Be6 {[%emt 0:00:00]} 19. Qb3 {[%emt 0:00:53]} Re8 {[%emt 0:00:00]} 20. Ra1 {[%emt 0:09:46]} Bxd5 {[%emt 0:00:00]} 21. Qxd5 {[%emt 0:01:01]} Re6 {[%emt 0:00:00]} (21... a5 $14 {feels stronger.}) 22. Ra3 $16 {[%emt 0:01:24] White is more active.} h6 {[%emt 0:00:00]} 23. Rfa1 {[%emt 0:02:24]} Ra8 {[%emt 0:00:00]} 24. Qa2 {[%emt 0:00:20][%cal Ra3a6]} a5 {[%emt 0:05:18]} 25. Qd5 {[%emt 0:01:43]} Qb7 {[%emt 0:03:55]} 26. bxa5 {[%emt 0:05:06]} Rxa5 {[%emt 0:00:13]} 27. Rxa5 {[%emt 0:00:06]} Bxa5 {[%emt 0:00:07]} 28. Rb1 {[%emt 0:00:13][%cal Ba1b1,Bb1b5,Bb5b6][%mdl 32]} Bxc3 {[%emt 0:02:01]} 29. Rxb5 {[%emt 0:00:07]} Qa6 {[%emt 0:00:54] [#] A mistake that costs the game.} (29... Qd7 $16 30. Rb6 Nd4) 30. Rb6 $1 $18 {[%emt 0:01:14]} Qa1+ {[%emt 0:00:09]} 31. Kh2 {[%emt 0:00:13]} Nd4 {[%emt 0:00:56] ...Nxf3+ is the strong threat.} 32. Bxd4 {[%emt 0:00:58]} ({Weaker is} 32. Rxd6 Rxd6 33. Qxd6 Nxf3+ 34. gxf3 Qf1 $11) 32... Bxd4 {[%emt 0:00:21]} 33. Nxd4 {[%emt 0:00:48]} ({Stronger than} 33. Rxd6 Qc1 $11) 33... Qxd4 {[%emt 0:00:49]} 34. Qxd4 {[%emt 0:00:28]} exd4 {[%emt 0:00:05][%mdl 4096] Endgame KR-KR} 35. Rb8+ {[%emt 0:00:49]} Kh7 {[%emt 0:00:07]} 36. Rb4 {[%emt 0:00:11]} d5 {[%emt 0:00:59]} 37. exd5 {[%emt 0:00:23]} Rd6 {[%emt 0:00:09]} 38. Rxd4 {[%emt 0:00:05]} Kg6 {[%emt 0:00:23]} 39. f4 {[%emt 0:01:18][%cal Bf2f4,Bf4f5][%mdl 32]} Kf6 {[%emt 0:00:23]} 40. Kg3 {[%emt 0:00:00] Hoping for Kf3.} Ke7 {[%emt 0:00:00]} (40... Kg6 $142 41. Kf2 h5) 41. f5 {[%emt 0:05:51]} Kd7 {[%emt 0:07:17]} 42. Kf4 {[%emt 0:01:25]} Ra6 {[%emt 0:00:54]} 43. Rb4 {[%emt 0:05:20]} g5+ $2 {[%emt 0:07:03] [#]} (43... Kc7 44. Ke4 f6) 44. fxg6 {[%emt 0:01:43] White is clearly winning.} fxg6 {[%emt 0:00:06]} (44... Rxg6 $142 45. g4 Rg5) 45. Ke5 {[%emt 0:01:33]} Ra2 {[%emt 0:00:10]} 46. Rg4 {[%emt 0:00:56]} Ra6 {[%emt 0:03:01]} 47. Rg3 {[%emt 0:01:39]} g5 {[%emt 0:01:03]} 48. Rf3 {[%emt 0:00:36]} Ra2 {[%emt 0:00:14]} 49. g4 {[%emt 0:00:29] Weighted Error Value: White=0.08 (flawless) /Black=0.27 (precise)} 1-0

[Event "8th Svetozar Gligoric Cup 2022"]
[Site "Paracin"]
[Date "2022.06.02"]
[Round "4.4"]
[White "Omorjan, Dejan"]
[Black "Toth, Aleksandar"]
[Result "1/2-1/2"]
[ECO "D31"]
[WhiteElo "2339"]
[BlackElo "2335"]
[Annotator "TA"]
[PlyCount "61"]
[EventDate "2022.05.31"]
[EventType "team-tourn"]
[EventCountry "SRB"]
[SourceTitle "playchess.com"]
[Source "ChessBase"]
[SourceQuality "1"]
[TimeControl "40/5400+30:900+30"]

{[%evp 9,61,18,18,0,66,45,46,16,54,37,39,41,38,34,53,12,52,0,0,0,31,36,43,45,51,51,50,18,8,26,59,66,69,56,82,65,81,50,86,73,89,84,82,45,52,20,19,26,23,8,7,0,0,0]} 1. d4 {[%emt 0:00:02]} d5 {[%emt 0:01:52]} 2. c4 {[%emt 0:00:05]} e6 {[%emt 0:00:15]} 3. Nc3 {[%emt 0:00:02]} a6 {[%emt 0:00:36]} 4. cxd5 {[%emt 0:00:01]} exd5 {[%emt 0:00:06]} 5. Qb3 {[%emt 0:00:06]} c5 {[%emt 0:01:41]} 6. dxc5 {[%emt 0:11:21] [#] D31: Queen's Gambit Declined: Semi-Slav without ...Nf6 (+ Marshall Gambit and Noteboom) and Exchange Variation lines without ...Nf6.} d4 $146 {[%emt 0:10:17]} ({Black should play} 6... Nf6 $11) ({Predecessor:} 6... Nc6 7. Nf3 Nf6 8. Bg5 Bxc5 9. e3 d4 10. Bxf6 gxf6 11. Ne4 Bb4+ 12. Nfd2 f5 {0-1 (36) Moroni,L (2553)-Maghsoodloo,P (2671) Chess.com INT 2019}) 7. Na4 $1 $14 {[%emt 0:04:08] Hoping for e4.} Nc6 {[%emt 0:25:14]} 8. Nf3 {[%emt 0:06:15] aiming for e3. White is slightly better.} (8. Nb6 $5 {[%cal Rb6a8]} Ra7 9. Qc2 $16 (9. Nxc8 Qxc8 10. Qc2 Nf6 $16)) 8... Bxc5 {[%emt 0:03:14][%mdl 64] [#] Decoy} 9. Nxc5 {[%emt 0:01:02]} Qa5+ {[%emt 0:00:06]} 10. Bd2 {[%emt 0:00:35]} Qxc5 {[%emt 0:00:05]} 11. Rc1 {[%emt 0:01:17]} Qd6 {[%emt 0:05:57]} 12. e3 {[%emt 0:07:34] And now Bc4 would win.} Nf6 {[%emt 0:02:31]} 13. exd4 {[%emt 0:22:53]} (13. Qd3 $14) 13... O-O $11 {[%emt 0:01:10]} 14. Qa3 {[%emt 0:05:01]} Qd8 {[%emt 0:18:39]} 15. Be3 {[%emt 0:03:46]} Bg4 {[%emt 0:05:08]} 16. Be2 {[%emt 0:01:14]} Bxf3 {[%emt 0:04:50]} 17. Bxf3 {[%emt 0:00:13]} Nxd4 {[%emt 0:00:09]} 18. Bxd4 {[%emt 0:02:08]} (18. Bxb7 {is interesting.} Ra7 19. Qb4 Re8 20. O-O) 18... Qxd4 {[%emt 0:00:05]} 19. O-O {[%emt 0:00:14][%cal Bh1f1,Bf1d1,Bd1d4][%mdl 32]} Rab8 {[%emt 0:00:25]} 20. Rfd1 {[%emt 0:03:40]} Qe5 {[%emt 0:00:32]} 21. Qc3 {[%emt 0:02:39]} Qb5 {[%emt 0:04:12]} 22. Rd4 {[%emt 0:02:02]} Rfe8 {[%emt 0:03:03]} 23. Qd2 {[%emt 0:04:25]} Qe5 {[%emt 0:00:42]} 24. h4 {[%emt 0:01:42]} Qe7 {[%emt 0:05:38]} 25. Rd1 {[%emt 0:02:00] White is more active.} h6 {[%emt 0:00:57]} 26. Qf4 {[%emt 0:01:54]} Rbc8 {[%emt 0:03:03]} 27. Qd6 {[%emt 0:07:34]} Rc2 {[%emt 0:00:27]} 28. Qxe7 {[%emt 0:01:37]} Rxe7 {[%emt 0:00:09]} 29. Rb4 {[%emt 0:00:27]} b5 {[%emt 0:00:59]} 30. a4 {[%emt 0:02:42]} bxa4 {[%emt 0:00:16]} 31. Rxa4 {[%emt 0:02:20] Weighted Error Value: White=0.15 (very precise) /Black=0.13 (very precise)} 1/2-1/2

[Event "8th Svetozar Gligoric Cup 2022"]
[Site "Paracin"]
[Date "2022.06.02"]
[Round "4.5"]
[White "Atalik, Suat"]
[Black "Savicevic, Vlatko"]
[Result "1/2-1/2"]
[ECO "A13"]
[WhiteElo "2459"]
[BlackElo "2284"]
[Annotator "TA"]
[PlyCount "131"]
[EventDate "2022.05.31"]
[EventType "team-tourn"]
[EventCountry "SRB"]
[SourceTitle "playchess.com"]
[Source "ChessBase"]
[SourceQuality "1"]
[TimeControl "40/5400+30:900+30"]

{[%evp 18,130,0,-3,0,0,8,18,13,10,0,0,15,-42,-41,-35,-41,-66,-71,-72,-78,-66,-60,-83,11,0,5,2,77,90,91,79,92,83,95,95,96,58,73,69,60,53,65,53,78,43,125,87,126,119,178,97,73,28,74,47,72,-9,-16,-17,8,5,8,8,81,83,88,88,83,83,81,72,55,8,8,8,8,8,8,8,8,8,8,8,8,8,8,8,8,8,8,8,8,8,8,8,8,8,8,8,8,8,8,8,8,8,8,8,8,8,8,0,0,0,0]} 1. c4 {[%emt 0:00:15]} e6 {[%emt 0:01:06]} 2. g3 {[%emt 0:01:09]} d5 {[%emt 0:00:59]} 3. Bg2 {[%emt 0:00:25]} dxc4 {[%emt 0:01:56]} 4. Qa4+ {[%emt 0:00:22]} Nd7 {[%emt 0:01:18]} 5. Qxc4 {[%emt 0:04:15]} c5 {[%emt 0:01:11]} 6. Nf3 {[%emt 0:06:53]} Ngf6 {[%emt 0:08:20]} 7. O-O {[%emt 0:03:55]} a6 {[%emt 0:11:40]} 8. d3 {[%emt 0:01:27]} Bd6 {[%emt 0:04:36]} 9. Qb3 {[%emt 0:00:25]} Rb8 {[%emt 0:01:44]} 10. Nc3 {[%emt 0:04:48]} O-O {[%emt 0:03:55] A13: English Opening: 1...e6.} 11. Rd1 {[%emt 0:01:56]} b6 {[%emt 0:17:40] [#]} 12. Ne4 $146 {[%emt 0:11:19]} ({Predecessor:} 12. d4 Bb7 13. Bg5 Qc7 14. Bxf6 Nxf6 15. dxc5 {½-½ (15) Bischoff,K (2465)-Lau,R (2540) Munich 1988}) 12... Nxe4 {[%emt 0:08:30]} 13. dxe4 {[%emt 0:00:06]} Qc7 {[%emt 0:00:23]} 14. Qd3 {[%emt 0:08:06]} Be7 {[%emt 0:01:43]} (14... Be5 15. Nxe5 Nxe5 16. Bf4 $14) 15. e5 {[%emt 0:01:35]} (15. b3 $11) 15... c4 $15 {[%emt 0:06:15]} 16. Qd4 {[%emt 0:02:06]} b5 {[%emt 0:01:52]} 17. h4 {[%emt 0:12:43]} Bc5 {[%emt 0:04:03]} 18. Qg4 {[%emt 0:08:56]} f5 {[%emt 0:01:58]} (18... Nxe5 $2 19. Nxe5 f6 20. b4 (20. Nc6 Rb6 $18) 20... cxb3 21. Nc6 $18) 19. Qh5 {[%emt 0:00:27] Ng5 is the strong threat.} Nb6 $1 {[%emt 0:06:01]} 20. Bf4 {[%emt 0:03:28][%cal Oe2e4]} Qf7 {[%emt 0:03:37]} ({Better is} 20... Na4 $17 21. Rd6 (21. Ng5 h6 $17) 21... Qa7) 21. Qxf7+ $11 {[%emt 0:01:56]} Kxf7 {[%emt 0:00:17]} 22. e4 {[%emt 0:02:44] White wants to play exf5.} fxe4 {[%emt 0:05:58]} (22... Na4 $11) 23. Ng5+ $16 {[%emt 0:01:11][%mdl 64] [#] Discovered Attack, Double Attack} Kg8 {[%emt 0:00:37][%cal Oe4e3]} 24. Nxe4 {[%emt 0:01:35]} Be7 {[%emt 0:00:20]} 25. Bg5 {[%emt 0:00:21]} Bxg5 {[%emt 0:01:49]} 26. hxg5 {[%emt 0:00:09]} (26. Nxg5 Na4 $14) 26... Bb7 {[%emt 0:04:51]} 27. Rd6 {[%emt 0:04:40]} Na4 {[%emt 0:00:47]} 28. b3 $36 {[%emt 0:03:44][%mdl 2048] White is more active.} ({Much weaker is} 28. Rxe6 $6 Bxe4 29. Bxe4 Nc5 $11) 28... Bxe4 {[%emt 0:00:06]} 29. Bxe4 {[%emt 0:00:25]} Nc5 {[%emt 0:00:05][%csl LRb3,LRe4]} 30. Bc2 {[%emt 0:00:38]} a5 {[%emt 0:00:36]} 31. bxc4 {[%emt 0:00:44]} b4 {[%emt 0:00:04]} ({Black should play} 31... bxc4 $14 32. Rb1 Rxb1+ 33. Bxb1 Rb8) 32. g6 {[%emt 0:05:00]} hxg6 {[%emt 0:00:17]} 33. Bxg6 {[%emt 0:00:08]} Rfc8 {[%emt 0:00:49] [#]} (33... a4 $16 34. Kg2 Rfd8) 34. f4 {[%emt 0:01:25]} (34. Kg2 $1 $18) 34... a4 {[%emt 0:00:06]} 35. g4 {[%emt 0:00:35] White is more active.} Kf8 {[%emt 0:01:40]} (35... b3 $11) 36. f5 {[%emt 0:00:59]} Ke7 {[%emt 0:00:27]} 37. g5 {[%emt 0:01:03]} (37. Rf1 $16) 37... exf5 $11 {[%emt 0:00:18]} 38. Bxf5 {[%emt 0:00:22]} Rc7 {[%emt 0:00:21]} (38... Rf8 $5 {[%cal Rf8f5]} 39. Rf1 b3 40. axb3 (40. Rc6 $2 Rxf5 41. Ra1 Rxg5+ 42. Kf2 b2 $19) 40... axb3 $11) 39. Rg6 {[%emt 0:04:16]} (39. Rf1 {feels hotter.} b3 40. axb3 axb3 41. Bg6) 39... Kf8 {[%emt 0:00:13]} 40. Rf1 {[%emt 0:00:00]} Kg8 {[%emt 0:00:00]} (40... Re7 $11) 41. Rd6 $16 {[%emt 0:01:56]} b3 {[%emt 0:04:02]} 42. axb3 {[%emt 0:01:38]} axb3 {[%emt 0:02:02]} 43. g6 {[%emt 0:03:12] Inhibits Rf7.} b2 {[%emt 0:05:23]} 44. Bb1 {[%emt 0:04:21]} Rf8 {[%emt 0:04:23]} 45. Rb6 {[%emt 0:02:04]} (45. Rfd1 $14 {might be stronger.}) 45... Rb7 $11 {[%emt 0:00:59] The position is equal.} 46. Rxb7 {[%emt 0:04:09]} Rxf1+ {[%emt 0:00:07]} 47. Kxf1 {[%emt 0:00:04][%cal Rb7b8]} Nxb7 {[%emt 0:00:07][%mdl 4096] Endgame KB-KN} 48. Ke2 {[%emt 0:00:21]} Nc5 {[%emt 0:03:01]} 49. Ke3 {[%emt 0:03:05]} Kf8 {[%emt 0:00:22]} 50. Kd4 {[%emt 0:00:32]} Nb3+ {[%emt 0:00:59]} 51. Kc3 {[%emt 0:01:07]} Na5 {[%emt 0:00:06]} 52. c5 {[%emt 0:00:52]} Ke7 {[%emt 0:00:08]} 53. Kxb2 {[%emt 0:01:20]} Nc4+ {[%emt 0:00:14]} 54. Kc3 {[%emt 0:00:10]} Nxe5 {[%emt 0:00:09]} 55. Be4 {[%emt 0:00:22]} Nd7 {[%emt 0:00:18]} 56. Kd4 {[%emt 0:00:14]} Nxc5 {[%emt 0:00:41]} 57. Kxc5 {[%emt 0:00:05] KB-KP} Kf8 {[%emt 0:00:07]} 58. Bd5 {[%emt 0:00:05]} Ke7 {[%emt 0:00:18]} 59. Kd4 {[%emt 0:00:39]} Kf8 {[%emt 0:00:13]} 60. Ke5 {[%emt 0:00:43]} Ke7 {[%emt 0:00:10]} 61. Bc4 {[%emt 0:00:44]} Kf8 {[%emt 0:00:13]} 62. Kd6 {[%emt 0:00:33]} Ke8 {[%emt 0:00:07]} 63. Bg8 {[%emt 0:00:32]} Kf8 $1 {[%emt 0:00:22]} 64. Kd7 {[%emt 0:00:26]} Kxg8 {[%emt 0:00:09]} 65. Ke8 {[%emt 0:00:03]} Kh8 {[%emt 0:00:07]} 66. Kf8 {[%emt 0:00:01] Weighted Error Value: White=0.12 (very precise) /Black=0.15 (very precise)} 1/2-1/2

[Event "8th Svetozar Gligoric Cup 2022"]
[Site "Paracin"]
[Date "2022.06.02"]
[Round "4.6"]
[White "Simic, Dragisa"]
[Black "Markovic, Miroslav"]
[Result "1/2-1/2"]
[ECO "B15"]
[WhiteElo "2290"]
[BlackElo "2271"]
[Annotator "TA"]
[PlyCount "28"]
[EventDate "2022.05.31"]
[EventType "team-tourn"]
[EventCountry "SRB"]
[SourceTitle "playchess.com"]
[Source "ChessBase"]
[SourceQuality "1"]
[TimeControl "40/5400+30:900+30"]

{[%evp 11,28,32,58,17,50,27,31,30,31,31,35,28,45,26,28,33,32,39,38]} 1. e4 {[%emt 0:00:02]} c6 {[%emt 0:00:42]} 2. d4 {[%emt 0:01:19]} g6 {[%emt 0:00:26]} 3. Nc3 {[%emt 0:03:57]} Bg7 {[%emt 0:00:23]} 4. Nf3 {[%emt 0:04:41]} d5 {[%emt 0:03:16]} 5. h3 {[%emt 0:00:08]} dxe4 {[%emt 0:02:40]} 6. Nxe4 {[%emt 0:01:02]} Bf5 {[%emt 0:01:50] 6...Nf6 is a critical line.} 7. Bd3 {[%emt 0:05:44] B15: Caro-Kann: 3 Nc3: 3...g6 and 3...dxe4 4 Nxe4 Nf6 5 Nxf6+ exf6.} Nd7 {[%emt 0:06:27]} (7... Bxd4 {with more complications.} 8. Neg5 Bb6 9. Bc4 Qxd1+ 10. Kxd1 h6) 8. O-O {[%emt 0:02:01] [#]} Bxe4 $146 {[%emt 0:00:25]} ({Predecessor:} 8... Ngf6 9. Nxf6+ Nxf6 10. Bxf5 gxf5 11. Ne5 O-O 12. c3 e6 13. Bg5 h6 14. Bh4 Qc7 {½-½ (30) Oppitz,P (2265)-Buehler,O Germany 1989}) 9. Bxe4 {[%emt 0:00:12]} Ngf6 {[%emt 0:00:06]} 10. Bd3 {[%emt 0:00:26]} O-O {[%emt 0:00:12]} 11. Re1 {[%emt 0:04:32]} c5 {[%emt 0:04:15]} 12. c3 {[%emt 0:06:41][%cal Od4d5]} cxd4 {[%emt 0:00:38]} 13. Nxd4 {[%emt 0:00:11]} e5 {[%emt 0:03:57]} 14. Nb3 {[%emt 0:02:33]} Qc7 {[%emt 1:12:13] Weighted Error Value: White=0.15 (very precise) /Black=0.10 (very precise)} 1/2-1/2